fUST/lending_fUST_20240619
["ID","MTS","AMOUNT","RATE_DAILY","PERIOD"]
[329859862,1718767842993,-154.831597,0.0001646,2]
[329859864,1718767843002,-508.09425828,0.0001646,2]
[329859866,1718767843012,-500.0,0.0001646,2]
[329859868,1718767843022,-509.45851823,0.0001646,2]
[329859870,1718767843031,-500.0,0.00016461,2]
[329859872,1718767843041,-500.0,0.00016461,2]
[329859874,1718767843051,-500.0,0.00016461,2]
[329859876,1718767843061,-500.0,0.00016461,2]
[329859878,1718767843070,-500.0,0.00016461,2]
[329859880,1718767843079,-500.0,0.00016461,2]
[329859882,1718767843089,-163.93138658,0.00016461,2]
[329859884,1718767843098,-500.0,0.00016461,2]
[329859886,1718767843108,-500.0,0.00016461,2]
[329859888,1718767843118,-500.0,0.00016461,2]
[329859890,1718767843127,-500.0,0.00016461,2]
[329859892,1718767843137,-501.83866596,0.00016461,2]
[329859894,1718767843148,-500.0,0.00016461,2]
[329859896,1718767843157,-505.4146408,0.00016461,2]
[329859898,1718767843167,-500.0,0.00016461,2]
[329859900,1718767843177,-151.0,0.00016461,2]
[329859902,1718767843191,-505.32294698,0.00016461,2]
[329859904,1718767843201,-500.0,0.00016461,2]
[329859906,1718767843211,-505.09984611,0.00016461,2]
[329859908,1718767843222,-500.0,0.00016461,2]
[329859910,1718767843233,-151.0,0.00016461,2]
[329859912,1718767843242,-159.712802,0.00016461,2]
[329859914,1718767843253,-151.0,0.00016461,2]
[329859916,1718767843268,-151.0,0.00016461,2]
[329859918,1718767843279,-151.0,0.00016461,2]
[329859920,1718767843288,-162.919756,0.00016461,2]
[329859922,1718767843299,-505.0471163,0.00016461,2]
[329859924,1718767843309,-500.0,0.00016461,2]
[329859926,1718767843318,-151.0,0.00016461,2]
[329859928,1718767843328,-151.0,0.00016461,2]
[329859930,1718767843338,-500.0,0.00016461,2]
[329859932,1718767843348,-502.56910015,0.00016461,2]
[329859934,1718767843359,-511.8428703,0.00016461,2]
[329859936,1718767843368,-251.753657,0.00016461,2]
[329859938,1718767843379,-500.0,0.00016461,2]
[329859940,1718767843390,-250.880128,0.00016461,2]
[329859942,1718767843401,-509.3879339,0.00016461,2]
[329859944,1718767843411,-151.0,0.00016461,2]
[329859946,1718767843422,-151.0,0.00016461,2]
[329859948,1718767843432,-151.0,0.00016461,2]
[329859950,1718767843442,-151.0,0.00016461,2]
[329859952,1718767843453,-151.0,0.00016461,2]
[329859954,1718767843462,-520.7730975,0.00016461,2]
[329859956,1718767843472,-509.43091596,0.00016461,2]
[329859958,1718767843482,-226.80678,0.00016461,2]
[329859960,1718767843491,-154.981203,0.00016461,2]
[329859962,1718767843501,-152.675532,0.00016461,2]
[329859964,1718767843511,-513.29795255,0.00016461,2]
[329859966,1718767843522,-151.0,0.00016461,2]
[329859968,1718767843532,-151.0,0.00016461,2]
[329859970,1718767843542,-500.0,0.00016461,2]
[329859972,1718767843551,-339.09095863,0.00016461,2]
[329859974,1718767843561,-151.0,0.00016462,2]
[329859977,1718767843570,-500.0,0.00016462,2]
[329859979,1718767843580,-575.92704871,0.00016462,2]
[329859981,1718767843590,-151.0,0.00016462,2]
[329859983,1718767843600,-151.0,0.00016462,2]
[329859985,1718767843610,-500.0,0.00016462,2]
[329859987,1718767843620,-325.26903754,0.00016462,2]
[329859989,1718767843629,-402.6714843,0.00016463,2]
[329859991,1718767843643,-500.0,0.00016463,2]
[329859993,1718767843653,-500.0,0.00016464,2]
[329859995,1718767843663,-1439.27144167,0.00016465,2]
[329859997,1718767843672,-4066.04217709,0.00016465,2]
[329859999,1718767843681,-151.0,0.00016465,2]
[329860001,1718767843691,-500.0,0.00016465,2]
[329860003,1718767843701,-500.0,0.00016465,2]
[329860005,1718767843711,-151.0,0.00016465,2]
[329860006,1718767843720,-500.0,0.00016466,2]
[329860009,1718767843730,-500.0,0.00016466,2]
[329860010,1718767843740,-500.0,0.00016466,2]
[329860012,1718767843750,-500.0,0.00016466,2]
[329860014,1718767843760,-500.0,0.00016466,2]
[329860016,1718767843770,-500.0,0.00016466,2]
[329860018,1718767843780,-1711.69801326,0.00016467,2]
[329860021,1718767843791,-151.0,0.00016467,2]
[329860023,1718767843800,-151.0,0.00016467,2]
[329860024,1718767843810,-151.0,0.00016467,2]
[329860026,1718767843820,-301.85410646,0.00016468,2]
[329860028,1718767843829,-165.12899525,0.00016469,2]
[329860030,1718767843840,-160.652942,0.0001647,2]
[329860032,1718767843850,-264.02008176,0.0001647,2]
[329860034,1718767843860,-275.92715152,0.000165,2]
[329860036,1718767843870,-153.0,0.000165,2]
[329860038,1718767843880,-500.0,0.00016712,2]
[329860040,1718767843893,-500.0,0.00016712,2]
[329860042,1718767843902,-3071.3,0.00016712,2]
[329860044,1718767843912,-500.0,0.00016712,2]
[329860046,1718767843921,-500.0,0.00016712,2]
[329860048,1718767843931,-687.35,0.00016712,2]
[329860050,1718767843941,-500.0,0.00016712,2]
[329860052,1718767843951,-500.0,0.00016712,2]
[329860054,1718767843961,-500.0,0.00016712,2]
[329860056,1718767843971,-913.33,0.00016712,2]
[329860058,1718767843981,-500.0,0.00016712,2]
[329860060,1718767843991,-500.0,0.00016712,2]
[329860062,1718767844000,-500.0,0.00016712,2]
[329860064,1718767844010,-527.75396569,0.00016712,2]
[329860066,1718767844020,-500.0,0.00016712,2]
[329860068,1718767844030,-791.16,0.00016712,2]
[329860070,1718767844040,-618.32999361,0.00016712,2]
[329860072,1718767844050,-500.0,0.00016712,2]
[329860074,1718767844059,-500.0,0.00016712,2]
[329860076,1718767844070,-500.0,0.00016712,2]
[329860078,1718767844080,-151.0,0.00016712,2]
[329860080,1718767844090,-195.541638,0.00016712,2]
[329860082,1718767844101,-767.96,0.00016712,2]
[329860084,1718767844111,-1847.1,0.00016712,2]
[329860086,1718767844121,-500.0,0.00016712,2]
[329860088,1718767844130,-500.0,0.00016712,2]
[329860090,1718767844142,-500.0,0.00016712,2]
[329860092,1718767844151,-526.34435213,0.00016728,2]
[329860094,1718767844161,-480.19478048,0.00016729,2]
[329860096,1718767844170,-314.66230806,0.00016729,2]
[329860098,1718767844182,-523.81017448,0.00016729,2]
[329860100,1718767844197,-614.57663238,0.00016729,2]
[329860102,1718767844208,-490.43335896,0.00016729,2]
[329860104,1718767844218,-151.0,0.00016729,2]
[329860106,1718767844229,-500.0,0.00016729,2]
[329860110,1718767844239,-500.0,0.00016729,2]
[329860115,1718767844249,-151.0,0.00016729,2]
[329860119,1718767844260,-619.43,0.00016729,2]
[329860124,1718767844271,-1141.57,0.00016729,2]
[329860128,1718767844282,-528.61589654,0.00016729,2]
[329860133,1718767844293,-7796.24,0.00016729,2]
[329860137,1718767844303,-516.68940843,0.00016729,2]
[329860140,1718767844313,-500.0,0.00016729,2]
[329860143,1718767844324,-500.0,0.00016729,2]
[329860146,1718767844334,-500.0,0.00016729,2]
[329860149,1718767844344,-151.0,0.00016729,2]
[329860153,1718767844355,-291.665452,0.00016729,2]
[329860155,1718767844366,-510.62212565,0.00016729,2]
[329860157,1718767844376,-151.0,0.00016729,2]
[329860159,1718767844386,-500.0,0.00016732,2]
[329860161,1718767844400,-825.49051106,0.00016733,15]
[329860163,1718767844409,-500.0,0.00016733,2]
[329860166,1718767844419,-500.0,0.00016733,2]
[329860167,1718767844429,-500.0,0.00016733,2]
[329860169,1718767844439,-526.01994798,0.00016733,2]
[329860171,1718767844449,-500.0,0.00016733,2]
[329860173,1718767844458,-500.0,0.00016733,2]
[329860175,1718767844468,-500.0,0.00016733,2]
[329860178,1718767844479,-529.70778736,0.00016733,2]
[329860179,1718767844489,-275.17108294,0.00016733,2]
[329860181,1718767844499,-500.0,0.00016733,2]
[329860183,1718767844509,-500.0,0.00016733,2]
[329860185,1718767844518,-500.0,0.00016733,2]
[329860187,1718767844529,-500.0,0.00016733,2]
[329860189,1718767844539,-508.35374932,0.00016733,2]
[329860191,1718767844549,-506.35341636,0.00016733,2]
[329860194,1718767844560,-500.0,0.00016733,2]
[329860196,1718767844571,-500.0,0.00016733,2]
[329860198,1718767844581,-500.0,0.00016733,2]
[329860200,1718767844591,-507.70265262,0.00016733,2]
[329860202,1718767844601,-502.51030074,0.00016733,2]
[329860204,1718767844611,-500.0,0.00016733,2]
[329860206,1718767844622,-500.0,0.00016733,2]
[329860208,1718767844632,-151.0,0.00016734,2]
[329860210,1718767844646,-500.0,0.00016734,2]
[329860211,1718767844656,-505.94580093,0.00016734,2]
[329860214,1718767844667,-500.0,0.00016734,2]
[329860216,1718767844677,-501.60122687,0.00016734,2]
[329860218,1718767844688,-507.72667951,0.00016734,2]
[329860220,1718767844698,-500.0,0.00016734,2]
[329860221,1718767844708,-416.26191538,0.00016734,2]
[329860223,1718767844718,-506.669215,0.00016734,2]
[329860226,1718767844728,-500.0,0.00016734,2]
[329860228,1718767844737,-500.0,0.00016734,2]
[329860229,1718767844747,-509.30409133,0.00016734,2]
[329860232,1718767844758,-504.50609366,0.00016734,2]
[329860234,1718767844768,-151.0,0.00016734,2]
[329860235,1718767844777,-512.33207322,0.00016734,2]
[329860238,1718767844787,-151.0,0.00016734,2]
[329860240,1718767844797,-2447.96,0.00016734,2]
[329860242,1718767844807,-500.0,0.00016734,2]
[329860244,1718767844818,-151.0,0.00016734,2]
[329860246,1718767844828,-151.0,0.00016734,2]
[329860248,1718767844838,-505.71924489,0.00016735,2]
[329860250,1718767844847,-341.41993423,0.00016735,2]
[329860252,1718767844856,-638.62262095,0.00016735,2]
[329860253,1718767844866,-416.56043588,0.00016735,2]
[329860255,1718767844876,-500.0,0.00016735,2]
[329860257,1718767844886,-503.12322801,0.00016735,2]
[329860259,1718767844899,-509.3197494,0.00016735,2]
[329860261,1718767844909,-500.0,0.00016735,2]
[329860263,1718767844918,-500.0,0.00016735,2]
[329860265,1718767844927,-500.0,0.00016735,2]
[329860267,1718767844936,-519.5,0.00016735,2]
[329860269,1718767844945,-506.88083887,0.00016735,2]
[329860271,1718767844955,-540.5219426,0.00016735,2]
[329860273,1718767844964,-500.0,0.00016735,2]
[329860275,1718767844973,-516.7852795,0.00016737,2]
[329860277,1718767844983,-151.0,0.00016737,2]
[329860279,1718767844992,-152.095423,0.00016739,2]
[329860281,1718767845002,-500.0,0.00016739,2]
[329860283,1718767845012,-496.96714494,0.0001674,2]
[329860285,1718767845022,-500.0,0.0001674,2]
[329860287,1718767845032,-500.0,0.0001674,2]
[329860289,1718767845042,-500.0,0.0001674,2]
[329860291,1718767845052,-500.0,0.0001674,2]
[329860293,1718767845062,-500.0,0.00016986,2]
[329860295,1718767845071,-500.0,0.00016986,2]
[329860297,1718767845081,-3071.3,0.00016986,2]
[329860299,1718767845090,-500.0,0.00016986,2]
[329860301,1718767845099,-500.0,0.00016986,2]
[329860303,1718767845109,-687.35,0.00016986,2]
[329860305,1718767845118,-500.0,0.00016986,2]
[329860307,1718767845128,-500.0,0.00016986,2]
[329860309,1718767845138,-500.0,0.00016986,2]
[329860311,1718767845151,-913.33,0.00016986,2]
[329860313,1718767845162,-500.0,0.00016986,2]
[329860315,1718767845171,-500.0,0.00016986,2]
[329860317,1718767845182,-500.0,0.00016986,2]
[329860319,1718767845194,-500.0,0.00016986,2]
[329860321,1718767845203,-791.16,0.00016986,2]
[329860323,1718767845213,-500.0,0.00016986,2]
[329860325,1718767845223,-500.0,0.00016986,2]
[329860327,1718767845233,-500.0,0.00016986,2]
[329860329,1718767845242,-151.0,0.00016986,2]
[329860331,1718767845251,-767.96,0.00016986,2]
[329860332,1718767845261,-1847.1,0.00016986,2]
[329860334,1718767845271,-500.0,0.00016986,2]
[329860336,1718767845281,-500.0,0.00016986,2]
[329860338,1718767845291,-500.0,0.00016986,2]
[329860340,1718767845300,-263.3785513,0.00016986,2]
[329860342,1718767845310,-154.1637256,0.00016986,2]
[329860344,1718767845319,-153.0,0.00016986,2]
[329860346,1718767845329,-153.0,0.00016986,2]
[329860348,1718767845338,-153.0,0.00016986,2]
[329860350,1718767845348,-153.0,0.00016986,2]
[329860352,1718767845358,-306.0,0.00016986,2]
[329860354,1718767845367,-500.0,0.00017003,2]
[329860356,1718767845376,-515.34609557,0.00017003,2]
[329860358,1718767845386,-619.43,0.00017003,2]
[329860359,1718767845397,-1141.57,0.00017003,2]
[329860361,1718767845406,-7796.24,0.00017003,2]
[329860363,1718767845416,-151.0,0.00017003,2]
[329860365,1718767845426,-500.0,0.00017007,2]
[329860367,1718767845436,-500.0,0.00017007,2]
[329860369,1718767845446,-500.0,0.00017007,2]
[329860371,1718767845456,-500.0,0.00017007,2]
[329860373,1718767845466,-500.0,0.00017007,2]
[329860375,1718767845476,-500.0,0.00017007,2]
[329860377,1718767845485,-500.0,0.00017007,2]
[329860389,1718767845590,-500.0,0.00017007,2]
[329860391,1718767845601,-517.39864231,0.00017007,2]
[329860393,1718767845611,-469.88532148,0.00017007,2]
[329860395,1718767845621,-500.0,0.00017007,2]
[329860397,1718767845631,-500.0,0.00017007,2]
[329860399,1718767845642,-524.13743913,0.00017007,2]
[329860401,1718767845651,-522.14957306,0.00017007,2]
[329860403,1718767845661,-151.0,0.00017007,2]
[329860405,1718767845671,-500.0,0.00017007,2]
[329860407,1718767845680,-500.0,0.00017008,2]
[329860409,1718767845690,-2447.96,0.00017008,2]
[329860411,1718767845700,-500.0,0.00017008,2]
[329860413,1718767845710,-500.0,0.00017008,2]
[329860415,1718767845719,-500.0,0.00017009,2]
[329860417,1718767845729,-508.07716472,0.00017009,2]
[329860419,1718767845739,-514.67556355,0.00017009,2]
[329860421,1718767845748,-516.57644635,0.00017009,2]
[329860423,1718767845757,-500.0,0.00017009,2]
[329860425,1718767845766,-508.60535281,0.00017014,2]
[329860427,1718767845775,-534.01938298,0.00017014,2]
[329860429,1718767845783,-521.3520336,0.00017014,2]
[329860431,1718767845793,-531.58681684,0.00017014,2]
[329860433,1718767845801,-153.5552774,0.00017233,2]
[329860435,1718767845810,-155.2114939,0.00017233,2]
[329860436,1718767845819,-153.0,0.00017233,2]
[329860438,1718767845829,-153.0,0.00017233,2]
[329860440,1718767845838,-410.4846749,0.00017233,2]
[329860442,1718767845847,-153.0,0.00017233,2]
[329860444,1718767845856,-153.0,0.00017233,2]
[329860446,1718767845866,-153.0,0.00017233,2]
[329860448,1718767845876,-153.0,0.00017233,2]
[329860450,1718767845885,-153.0,0.00017233,2]
[329860452,1718767845897,-153.0,0.00017233,2]
[329860454,1718767845907,-153.0,0.00017233,2]
[329860456,1718767845916,-153.0,0.00017233,2]
[329860458,1718767845926,-153.0,0.00017233,2]
[329860460,1718767845935,-153.0,0.00017233,2]
[329860462,1718767845945,-153.0,0.00017233,2]
[329860464,1718767845956,-153.0,0.00017233,2]
[329860466,1718767845965,-153.0,0.00017233,2]
[329860468,1718767845975,-153.0,0.00017233,2]
[329860470,1718767845985,-153.0,0.00017233,2]
[329860472,1718767845994,-153.0,0.00017233,2]
[329860474,1718767846004,-521.01041551,0.0001726,2]
[329860476,1718767846014,-500.0,0.0001726,2]
[329860478,1718767846023,-3071.3,0.0001726,2]
[329860480,1718767846033,-500.0,0.0001726,2]
[329860482,1718767846043,-500.0,0.0001726,2]
[329860484,1718767846053,-687.35,0.0001726,2]
[329860486,1718767846062,-500.0,0.0001726,2]
[329860488,1718767846072,-500.0,0.0001726,2]
[329860490,1718767846081,-500.0,0.0001726,2]
[329860492,1718767846091,-913.33,0.0001726,2]
[329860494,1718767846100,-500.0,0.0001726,2]
[329860496,1718767846110,-500.0,0.0001726,2]
[329860498,1718767846119,-524.15926122,0.0001726,2]
[329860500,1718767846129,-151.0,0.0001726,2]
[329860502,1718767846139,-500.0,0.0001726,2]
[329860504,1718767846151,-791.16,0.0001726,2]
[329860506,1718767846161,-500.0,0.0001726,2]
[329860508,1718767846170,-500.0,0.0001726,2]
[329860510,1718767846180,-151.0,0.0001726,2]
[329860512,1718767846190,-767.96,0.0001726,2]
[329860514,1718767846202,-1847.1,0.0001726,2]
[329860516,1718767846211,-500.0,0.0001726,2]
[329860518,1718767846220,-500.0,0.0001726,2]
[329860519,1718767846231,-411.0036928,0.0001726,2]
[329860521,1718767846241,-153.0,0.0001726,2]
[329860523,1718767846250,-588.6441335,0.0001726,2]
[329860525,1718767846260,-292.853427,0.0001726,2]
[329860527,1718767846271,-153.0,0.0001726,2]
[329860529,1718767846281,-292.853427,0.0001726,2]
[329860531,1718767846290,-153.0,0.0001726,2]
[329860533,1718767846299,-153.0,0.0001726,2]
[329860535,1718767846308,-307.6660366,0.00017261,2]
[329860537,1718767846318,-153.0,0.00017261,2]
[329860539,1718767846327,-153.0,0.00017261,2]
[329860541,1718767846337,-153.0,0.00017261,2]
[329860543,1718767846347,-153.0,0.00017261,2]
[329860545,1718767846356,-500.0,0.00017277,2]
[329860547,1718767846366,-619.43,0.00017277,2]
[329860549,1718767846375,-1141.57,0.00017277,2]
[329860551,1718767846385,-7796.24,0.00017277,2]
[329860553,1718767846396,-151.0,0.00017277,2]
[329860555,1718767846406,-500.0,0.00017281,2]
[329860557,1718767846415,-500.0,0.00017281,2]
[329860559,1718767846425,-500.0,0.00017281,2]
[329860561,1718767846435,-500.0,0.00017281,2]
[329860563,1718767846445,-500.0,0.00017281,2]
[329860565,1718767846455,-500.0,0.00017281,2]
[329860567,1718767846464,-500.0,0.00017281,2]
[329860568,1718767846474,-535.49533784,0.00017281,2]
[329860570,1718767846483,-500.0,0.00017281,2]
[329860572,1718767846493,-151.0,0.00017281,2]
[329860574,1718767846503,-500.0,0.00017281,2]
[329860576,1718767846513,-500.0,0.00017282,2]
[329860578,1718767846522,-500.0,0.00017282,2]
[329860581,1718767846532,-500.0,0.00017282,2]
[329860583,1718767846542,-2447.96,0.00017282,2]
[329860585,1718767846552,-503.48344658,0.00017282,2]
[329860587,1718767846561,-500.0,0.00017283,2]
[329860589,1718767846570,-500.0,0.00017283,2]
[329860591,1718767846580,-21696.16579968,0.00017366,2]
[329860592,1718767846589,-151.0,0.00017366,2]
[329860594,1718767846599,-1189.70784021,0.00017369,2]
[329860596,1718767846608,-554.35159069,0.00017369,2]
[329860598,1718767846617,-154.9244529,0.00017369,2]
[329860600,1718767846626,-1697.63758608,0.00017369,2]
[329860602,1718767846636,-1347.71250145,0.00017369,2]
[329860604,1718767846646,-283.52499046,0.00017369,2]
[329860606,1718767846655,-618.54912652,0.00017369,2]
[329860608,1718767846665,-266.55132871,0.0001737,2]
[329860610,1718767846675,-155.0852159,0.00017371,2]
[329860612,1718767846685,-155.05010753,0.00017371,2]
[329860614,1718767846695,-500.0,0.00017372,2]
[329860616,1718767846704,-954.64985333,0.00017373,2]
[329860618,1718767846713,-510.40561078,0.00017373,2]
[329860622,1718767846723,-1289.6704773,0.00017373,2]
[329860625,1718767846734,-155.66454861,0.00017373,2]
[329860628,1718767846744,-3732.3945387,0.00017373,2]
[329860631,1718767846754,-500.0,0.00017534,2]
[329860634,1718767846764,-3071.3,0.00017534,2]
[329860636,1718767846773,-500.0,0.00017534,2]
[329860638,1718767846783,-500.0,0.00017534,2]
[329860640,1718767846794,-687.35,0.00017534,2]
[329860642,1718767846803,-500.0,0.00017534,2]
[329860644,1718767846812,-500.0,0.00017534,2]
[329860645,1718767846821,-533.9567357,0.00017534,2]
[329860647,1718767846830,-913.33,0.00017534,2]
[329860649,1718767846839,-514.94318312,0.00017534,2]
[329860650,1718767846849,-500.0,0.00017534,2]
[329860652,1718767846859,-500.0,0.00017534,2]
[329860654,1718767846868,-791.16,0.00017534,2]
[329860655,1718767846877,-500.0,0.00017534,2]
[329860657,1718767846886,-500.0,0.00017534,2]
[329860658,1718767846896,-767.96,0.00017534,2]
[329860659,1718767846906,-1847.1,0.00017534,2]
[329860660,1718767846915,-500.0,0.00017534,2]
[329860662,1718767846924,-500.0,0.00017534,2]
[329860663,1718767846934,-500.0,0.00017551,2]
[329860665,1718767846944,-619.43,0.00017551,2]
[329860667,1718767846954,-1141.57,0.00017551,2]
[329860669,1718767846964,-7796.24,0.00017551,2]
[329860671,1718767846973,-525.95888792,0.00017554,2]
[329860673,1718767846982,-500.0,0.00017554,2]
[329860675,1718767846992,-500.0,0.00017555,2]
[329860677,1718767847001,-500.0,0.00017555,2]
[329860678,1718767847011,-500.0,0.00017555,2]
[329860679,1718767847019,-500.0,0.00017555,2]
[329860680,1718767847028,-287.28,0.00017555,2]
[329860681,1718767847037,-500.0,0.00017555,2]
[329860682,1718767847047,-500.0,0.00017555,2]
[329860683,1718767847057,-175.76331625,0.00017555,2]
[329860684,1718767847066,-500.0,0.00017556,2]
[329860685,1718767847075,-2447.96,0.00017556,2]
[329860686,1718767847084,-500.0,0.00017557,2]
[329860687,1718767847093,-500.0,0.00017808,2]
[329860688,1718767847103,-3071.3,0.00017808,2]
[329860690,1718767847112,-500.0,0.00017808,2]
[329860691,1718767847122,-500.0,0.00017808,2]
[329860693,1718767847132,-687.35,0.00017808,2]
[329860695,1718767847141,-500.0,0.00017808,2]
[329860697,1718767847154,-913.33,0.00017808,2]
[329860699,1718767847163,-500.0,0.00017808,2]
[329860701,1718767847172,-500.0,0.00017808,2]
[329860703,1718767847186,-791.16,0.00017808,2]
[329860705,1718767847195,-500.0,0.00017808,2]
[329860707,1718767847204,-500.0,0.00017808,2]
[329860709,1718767847214,-767.96,0.00017808,2]
[329860711,1718767847224,-1847.1,0.00017808,2]
[329860713,1718767847233,-500.0,0.00017808,2]
[329860715,1718767847243,-500.0,0.00017808,2]
[329860717,1718767847252,-500.0,0.00017825,2]
[329860718,1718767847261,-619.43,0.00017825,2]
[329860720,1718767847271,-1141.57,0.00017825,2]
[329860722,1718767847281,-7796.24,0.00017825,2]
[329860724,1718767847291,-500.0,0.00017828,2]
[329860726,1718767847300,-500.0,0.00017829,2]
[329860728,1718767847309,-500.0,0.00017829,2]
[329860730,1718767847318,-500.0,0.00017829,2]
[329860732,1718767847328,-260.71999646,0.00017829,2]
[329860734,1718767847337,-500.0,0.00017829,2]
[329860736,1718767847347,-500.0,0.00017829,2]
[329860738,1718767847356,-500.0,0.00017829,2]
[329860740,1718767847367,-500.0,0.0001783,2]
[329860743,1718767847378,-2447.96,0.0001783,2]
[329860745,1718767847387,-500.0,0.00017831,2]
[329860748,1718767847400,-267.8936287,0.00017918,2]
[329860751,1718767847409,-1306.06068608,0.00018,2]
[329860754,1718767847419,-825.44569832,0.00018,2]
[329860756,1718767847427,-155.01550155,0.00018,2]
[329860759,1718767847436,-477.09395427,0.00018,2]
[329860762,1718767847445,-155.12021038,0.00018,2]
[329860764,1718767847454,-500.0,0.00018082,2]
[329860767,1718767847463,-3071.3,0.00018082,2]
[329860770,1718767847473,-572.99806362,0.00018082,2]
[329860773,1718767847482,-500.0,0.00018082,2]
[329860775,1718767847491,-687.35,0.00018082,2]
[329860778,1718767847501,-500.0,0.00018082,2]
[329860781,1718767847510,-913.33,0.00018082,2]
[329860784,1718767847520,-500.0,0.00018082,2]
[329860786,1718767847529,-500.0,0.00018082,2]
[329860788,1718767847538,-791.16,0.00018082,2]
[329860790,1718767847547,-500.0,0.00018082,2]
[329860791,1718767847557,-500.0,0.00018082,2]
[329860793,1718767847566,-767.96,0.00018082,2]
[329860795,1718767847576,-1847.1,0.00018082,2]
[329860797,1718767847586,-500.0,0.00018082,2]
[329860799,1718767847595,-523.3505082,0.00018082,2]
[329860800,1718767847605,-619.43,0.00018099,2]
[329860802,1718767847614,-1141.57,0.00018099,2]
[329860804,1718767847624,-7796.24,0.00018099,2]
[329860805,1718767847633,-500.0,0.00018102,2]
[329860806,1718767847643,-500.0,0.00018103,2]
[329860807,1718767847654,-500.0,0.00018103,2]
[329860808,1718767847664,-500.0,0.00018103,2]
[329860809,1718767847672,-374.66688644,0.00018103,2]
[329860811,1718767847682,-500.0,0.00018103,2]
[329860813,1718767847691,-500.0,0.00018103,2]
[329860815,1718767847701,-500.0,0.00018104,2]
[329860817,1718767847710,-2447.96,0.00018104,2]
[329860819,1718767847720,-171.24376955,0.00018105,2]
[329860821,1718767847730,-245.7,0.00018268,2]
[329860823,1718767847739,-500.0,0.00018356,2]
[329860825,1718767847749,-3071.3,0.00018356,2]
[329860827,1718767847758,-308.10112747,0.00018356,2]
[329860829,1718767847768,-687.35,0.00018356,2]
[329860831,1718767847777,-500.0,0.00018356,2]
[329860833,1718767847788,-913.33,0.00018356,2]
[329860835,1718767847797,-500.0,0.00018356,2]
[329860837,1718767847807,-500.0,0.00018356,2]
[329860839,1718767847816,-791.16,0.00018356,2]
[329860841,1718767847826,-500.0,0.00018356,2]
[329860843,1718767847835,-500.0,0.00018356,2]
[329860845,1718767847845,-767.96,0.00018356,2]
[329860847,1718767847855,-1847.1,0.00018356,2]
[329860848,1718767847865,-500.0,0.00018356,2]
[329860849,1718767847875,-154.4743396,0.00018356,2]
[329860850,1718767847885,-153.0,0.00018356,2]
[329860851,1718767847896,-153.0,0.00018356,2]
[329860852,1718767847905,-153.0,0.00018356,2]
[329860853,1718767847914,-153.0,0.00018356,2]
[329860854,1718767847923,-619.43,0.00018373,2]
[329860855,1718767847932,-1141.57,0.00018373,2]
[329860856,1718767847942,-7796.24,0.00018373,2]
[329860857,1718767847951,-500.0,0.00018377,2]
[329860858,1718767847961,-500.0,0.00018377,2]
[329860859,1718767847970,-500.0,0.00018377,2]
[329860860,1718767847980,-296.72,0.00018377,2]
[329860861,1718767847990,-500.0,0.00018377,2]
[329860862,1718767847999,-500.0,0.00018377,2]
[329860863,1718767848094,-558.15,0.00018378,2]